[Event "*** Titled Tuesday Blitz AM"]
[Site "Chess.com"]
[Date "2020.01.07"]
[Round "9"]
[White "Alexander_Moskalenko"]
[Black "Msb2"]
[Result "0-1"]
[WhiteElo "2814"]
[BlackElo "2899"]
[TimeControl "180+2"]
[EndTime "11:05:00 PST"]
[Termination "Msb2 won by resignation"]

1. d4 {[%clk 0:03:01.9]} 1... Nf6 {[%clk 0:02:58.6]} 2. Bg5 {[%clk 0:03:03.4]}
2... d5 {[%clk 0:02:59.4]} 3. Bxf6 {[%clk 0:03:04.2]} 3... gxf6 {[%clk
0:03:01.3]} 4. e3 {[%clk 0:03:06.1]} 4... c5 {[%clk 0:03:02.4]} 5. c4 {[%clk
0:03:02.3]} 5... cxd4 {[%clk 0:02:52.6]} 6. Qxd4 {[%clk 0:03:01.3]} 6... dxc4
{[%clk 0:02:47.2]} 7. Qxd8+ {[%clk 0:03:01.9]} 7... Kxd8 {[%clk 0:02:49.1]} 8.
Bxc4 {[%clk 0:03:03.2]} 8... e6 {[%clk 0:02:50]} 9. Nc3 {[%clk 0:03:04]} 9... a6
{[%clk 0:02:39.8]} 10. O-O-O+ {[%clk 0:03:05.4]} 10... Ke7 {[%clk 0:02:41.1]}
11. Be2 {[%clk 0:03:06.8]} 11... Bd7 {[%clk 0:02:40.4]} 12. Bf3 {[%clk
0:03:07.5]} 12... Nc6 {[%clk 0:02:41.2]} 13. Nge2 {[%clk 0:03:09.1]} 13... f5
{[%clk 0:02:40.7]} 14. Nd4 {[%clk 0:03:09.5]} 14... Rc8 {[%clk 0:02:38.5]} 15.
Nxc6+ {[%clk 0:03:10.2]} 15... Bxc6 {[%clk 0:02:39.3]} 16. Bxc6 {[%clk
0:03:11.8]} 16... Rxc6 {[%clk 0:02:41.2]} 17. Kb1 {[%clk 0:03:08.3]} 17... Bg7
{[%clk 0:02:34.9]} 18. Ne2 {[%clk 0:03:09.8]} 18... Rhc8 {[%clk 0:02:33.8]} 19.
Rd2 {[%clk 0:03:10.7]} 19... Rd6 {[%clk 0:02:26.1]} 20. Rxd6 {[%clk 0:03:10.8]}
20... Kxd6 {[%clk 0:02:28]} 21. Rd1+ {[%clk 0:03:12.7]} 21... Ke7 {[%clk
0:02:29.3]} 22. Nf4 {[%clk 0:03:09.6]} 22... Be5 {[%clk 0:02:26.7]} 23. g3
{[%clk 0:03:10.6]} 23... Bxf4 {[%clk 0:02:17.4]} 24. exf4 {[%clk 0:03:10.2]}
24... h5 {[%clk 0:02:17.5]} 25. h4 {[%clk 0:03:08.1]} 25... f6 {[%clk
0:02:16.6]} 26. Rd3 {[%clk 0:02:42.5]} 26... e5 {[%clk 0:02:17.4]} 27. Rb3
{[%clk 0:02:43.3]} 27... b5 {[%clk 0:02:15.1]} 28. Rb4 {[%clk 0:01:43.6]} 28...
Kd6 {[%clk 0:02:03.7]} 29. a4 {[%clk 0:01:29.8]} 29... Rc4 {[%clk 0:01:28.4]}
30. Rxc4 {[%clk 0:01:29]} 30... bxc4 {[%clk 0:01:30.3]} 31. Kc2 {[%clk
0:01:30.6]} 31... e4 {[%clk 0:01:03.3]} 32. Kc3 {[%clk 0:01:10.6]} 32... Kc5
{[%clk 0:01:02.9]} 33. a5 {[%clk 0:00:45.5]} 33... Kd5 {[%clk 0:00:33.4]} 34.
Kc2 {[%clk 0:00:46.7]} 34... Kc6 {[%clk 0:00:31.9]} 35. Kd2 {[%clk 0:00:36.6]}
35... Kb5 {[%clk 0:00:31.9]} 36. Kc3 {[%clk 0:00:36.2]} 36... Kc5 {[%clk
0:00:33.4]} 37. Kc2 {[%clk 0:00:37.6]} 37... Kb4 {[%clk 0:00:34.3]} 38. Kd2
{[%clk 0:00:33.7]} 38... Kxa5 {[%clk 0:00:32.6]} 39. Kc3 {[%clk 0:00:35.6]}
39... Kb5 {[%clk 0:00:33.8]} 40. b4 {[%clk 0:00:35.2]} 40... cxb3 {[%clk
0:00:33.1]} 41. g4 {[%clk 0:00:36.8]} 41... fxg4 {[%clk 0:00:33.8]} 42. Kxb3
{[%clk 0:00:38.2]} 42... e3 {[%clk 0:00:33]} 43. f5 {[%clk 0:00:40.1]} 43...
exf2 {[%clk 0:00:33.9]} 0-1

[Event "*** Titled Tuesday Blitz AM"]
[Site "Chess.com"]
[Date "2020.01.07"]
[Round "9"]
[White "Ariadna_Atreides"]
[Black "Alopekos"]
[Result "1-0"]
[WhiteElo "2061"]
[BlackElo "2419"]
[TimeControl "180+2"]
[EndTime "11:05:04 PST"]
[Termination "Ariadna_Atreides won on time"]

1. d4 {[%clk 0:03:01.9]} 1... Nf6 {[%clk 0:03:00.2]} 2. Nf3 {[%clk 0:03:02.2]}
2... e6 {[%clk 0:03:00.6]} 3. e3 {[%clk 0:03:02.7]} 3... c5 {[%clk 0:03:00.9]}
4. Bd3 {[%clk 0:03:02.2]} 4... b6 {[%clk 0:03:01]} 5. O-O {[%clk 0:03:02.7]}
5... Bb7 {[%clk 0:03:02.5]} 6. b3 {[%clk 0:03:03.7]} 6... d5 {[%clk 0:02:57.8]}
7. Bb2 {[%clk 0:03:04.1]} 7... Bd6 {[%clk 0:02:49.9]} 8. Nbd2 {[%clk 0:02:55]}
8... Nbd7 {[%clk 0:02:44.2]} 9. Ne5 {[%clk 0:02:52.8]} 9... Qc7 {[%clk
0:02:31.6]} 10. Ndf3 {[%clk 0:02:48.4]} 10... Ne4 {[%clk 0:02:18.7]} 11. Bb5
{[%clk 0:02:42.9]} 11... Nf6 {[%clk 0:01:57.2]} 12. Nxd7 {[%clk 0:02:34.2]}
12... Nxd7 {[%clk 0:01:57.8]} 13. dxc5 {[%clk 0:02:34.2]} 13... bxc5 {[%clk
0:01:46.6]} 14. Bxg7 {[%clk 0:02:25.1]} 14... Rg8 {[%clk 0:01:46.8]} 15. Bf6
{[%clk 0:02:18.9]} 15... a6 {[%clk 0:01:20.6]} 16. Bxd7+ {[%clk 0:02:14.3]}
16... Qxd7 {[%clk 0:01:21.8]} 17. Be5 {[%clk 0:02:15.2]} 17... Qc7 {[%clk
0:01:16.5]} 18. Bxd6 {[%clk 0:02:12.7]} 18... Qxd6 {[%clk 0:01:18.4]} 19. c4
{[%clk 0:01:57.2]} 19... O-O-O {[%clk 0:01:12.9]} 20. cxd5 {[%clk 0:01:55.7]}
20... Bxd5 {[%clk 0:01:10.8]} 21. Qe2 {[%clk 0:01:51.3]} 21... Qc6 {[%clk
0:01:11.2]} 22. Kh1 {[%clk 0:01:23.3]} 22... e5 {[%clk 0:00:47.9]} 23. Rac1
{[%clk 0:01:02.5]} 23... h5 {[%clk 0:00:34.4]} 24. Rc2 {[%clk 0:00:35.6]} 24...
h4 {[%clk 0:00:28.3]} 25. Rfc1 {[%clk 0:00:29.6]} 25... Kb8 {[%clk 0:00:26.2]}
26. Rxc5 {[%clk 0:00:30]} 26... Qb7 {[%clk 0:00:24.5]} 27. e4 {[%clk 0:00:21.4]}
27... Bxe4 {[%clk 0:00:21.5]} 28. Rxe5 {[%clk 0:00:22.2]} 28... Bd5 {[%clk
0:00:17.4]} 29. Re7 {[%clk 0:00:22.4]} 29... Qa8 {[%clk 0:00:15.1]} 30. Qe5+
{[%clk 0:00:21.9]} 1-0

[Event "*** Titled Tuesday Blitz AM"]
[Site "Chess.com"]
[Date "2020.01.07"]
[Round "9"]
[White "AleksanderHnydiuk"]
[Black "MartinMatthiesen"]
[Result "1-0"]
[WhiteElo "2483"]
[BlackElo "2531"]
[TimeControl "180+2"]
[EndTime "11:05:06 PST"]
[Termination "AleksanderHnydiuk won by resignation"]

1. Nf3 {[%clk 0:03:01.9]} 1... d5 {[%clk 0:02:59.7]} 2. d4 {[%clk 0:03:02.3]}
2... Nf6 {[%clk 0:02:59.8]} 3. c4 {[%clk 0:03:03]} 3... e6 {[%clk 0:02:58.1]} 4.
g3 {[%clk 0:03:03.4]} 4... Be7 {[%clk 0:02:56.6]} 5. Bg2 {[%clk 0:03:04.1]} 5...
O-O {[%clk 0:02:57.4]} 6. Qc2 {[%clk 0:03:04.3]} 6... dxc4 {[%clk 0:02:42.7]} 7.
Qxc4 {[%clk 0:03:05.2]} 7... a6 {[%clk 0:02:43.2]} 8. Qc2 {[%clk 0:03:02.7]}
8... Nc6 {[%clk 0:02:36.7]} 9. O-O {[%clk 0:03:03.6]} 9... Nxd4 {[%clk
0:02:35.4]} 10. Nxd4 {[%clk 0:03:04.2]} 10... Qxd4 {[%clk 0:02:37.3]} 11. Qxc7
{[%clk 0:02:58.8]} 11... Qd6 {[%clk 0:02:36.9]} 12. Qxd6 {[%clk 0:02:54.8]}
12... Bxd6 {[%clk 0:02:37.2]} 13. Nd2 {[%clk 0:02:51.7]} 13... Rb8 {[%clk
0:02:30.9]} 14. Nc4 {[%clk 0:02:50.5]} 14... Bc7 {[%clk 0:02:31.9]} 15. Bf4
{[%clk 0:02:39.8]} 15... Bxf4 {[%clk 0:02:30.5]} 16. gxf4 {[%clk 0:02:41.7]}
16... Bd7 {[%clk 0:02:21.6]} 17. Nd6 {[%clk 0:02:22.4]} 17... b6 {[%clk
0:02:17.8]} 18. Rac1 {[%clk 0:02:20.2]} 18... Rfd8 {[%clk 0:02:12.9]} 19. Rfd1
{[%clk 0:02:20.6]} 19... Ba4 {[%clk 0:01:52.7]} 20. b3 {[%clk 0:02:20.3]} 20...
Be8 {[%clk 0:01:18.1]} 21. Rd3 {[%clk 0:02:20.5]} 21... Nd5 {[%clk 0:01:13.7]}
22. Nxe8 {[%clk 0:02:16.4]} 22... Rxe8 {[%clk 0:01:12.1]} 23. Bxd5 {[%clk
0:02:17.3]} 23... exd5 {[%clk 0:01:10.3]} 24. e3 {[%clk 0:02:18.5]} 24... Red8
{[%clk 0:01:04.7]} 25. Rcd1 {[%clk 0:02:16.9]} 25... Rbc8 {[%clk 0:01:03.9]} 26.
Rxd5 {[%clk 0:02:17.7]} 26... Rxd5 {[%clk 0:01:04.3]} 27. Rxd5 {[%clk
0:02:19.6]} 27... Kf8 {[%clk 0:01:05.1]} 28. Rd6 {[%clk 0:02:19.7]} 28... Rc2
{[%clk 0:01:05.4]} 29. a4 {[%clk 0:02:16.3]} 29... b5 {[%clk 0:01:04.7]} 30.
axb5 {[%clk 0:02:17.1]} 30... axb5 {[%clk 0:01:04.4]} 31. Rd5 {[%clk 0:02:18.1]}
31... Rb2 {[%clk 0:00:53.2]} 32. Rxb5 {[%clk 0:02:18.6]} 32... g6 {[%clk
0:00:54.7]} 33. Rb7 {[%clk 0:02:19.2]} 33... h5 {[%clk 0:00:55.1]} 34. Kg2
{[%clk 0:02:10.3]} 34... Kg7 {[%clk 0:00:56.1]} 35. Kf3 {[%clk 0:02:08.6]} 35...
Kf6 {[%clk 0:00:56.8]} 36. h3 {[%clk 0:02:02.4]} 36... Ke6 {[%clk 0:00:57.6]}
37. Rb6+ {[%clk 0:01:57.4]} 37... Ke7 {[%clk 0:00:57.4]} 38. Kg3 {[%clk
0:01:56.5]} 38... Kf8 {[%clk 0:00:57.4]} 39. f5 {[%clk 0:01:51.3]} 39... g5
{[%clk 0:00:49.2]} 40. f6 {[%clk 0:01:46.7]} 40... Kg8 {[%clk 0:00:49.9]} 41.
Rb5 {[%clk 0:01:45.6]} 41... h4+ {[%clk 0:00:28.3]} 42. Kf3 {[%clk 0:01:44.2]}
42... Kh7 {[%clk 0:00:16]} 43. Rxg5 {[%clk 0:01:41.1]} 43... Rxb3 {[%clk
0:00:16.7]} 44. Rg7+ {[%clk 0:01:40]} 44... Kh6 {[%clk 0:00:17.7]} 45. Rxf7
{[%clk 0:01:41.1]} 45... Rb1 {[%clk 0:00:17.8]} 46. Kg4 {[%clk 0:01:36]} 46...
Kg6 {[%clk 0:00:17.8]} 47. Rf8 {[%clk 0:01:34.1]} 47... Rf1 {[%clk 0:00:18.5]}
48. f4 {[%clk 0:01:27.3]} 48... Rg1+ {[%clk 0:00:18.5]} 49. Kxh4 {[%clk
0:01:25.6]} 49... Rg2 {[%clk 0:00:16.1]} 50. Rg8+ {[%clk 0:01:24.5]} 1-0

[Event "*** Titled Tuesday Blitz AM"]
[Site "Chess.com"]
[Date "2020.01.07"]
[Round "9"]
[White "norwaytoadog"]
[Black "Kotofeyca"]
[Result "1/2-1/2"]
[WhiteElo "2309"]
[BlackElo "2396"]
[TimeControl "180+2"]
[EndTime "11:05:08 PST"]
[Termination "Game drawn by repetition"]

1. e4 {[%clk 0:03:01.9]} 1... c5 {[%clk 0:02:58.5]} 2. Nf3 {[%clk 0:03:02.6]}
2... d6 {[%clk 0:02:59.3]} 3. Bb5+ {[%clk 0:03:03]} 3... Bd7 {[%clk 0:02:58.9]}
4. Bxd7+ {[%clk 0:03:03.5]} 4... Qxd7 {[%clk 0:03:00.8]} 5. O-O {[%clk
0:03:04.5]} 5... Nf6 {[%clk 0:03:02.3]} 6. Qe2 {[%clk 0:03:05.4]} 6... Nc6
{[%clk 0:03:03.7]} 7. Rd1 {[%clk 0:03:06.5]} 7... e6 {[%clk 0:03:05]} 8. d4
{[%clk 0:03:07]} 8... cxd4 {[%clk 0:03:05.8]} 9. Nxd4 {[%clk 0:03:08.1]} 9... a6
{[%clk 0:03:04.4]} 10. c4 {[%clk 0:03:08.8]} 10... Be7 {[%clk 0:03:04.9]} 11.
Nc3 {[%clk 0:03:09.7]} 11... O-O {[%clk 0:03:04.6]} 12. b3 {[%clk 0:03:10.6]}
12... Rab8 {[%clk 0:03:03.2]} 13. Bb2 {[%clk 0:03:10.6]} 13... Nxd4 {[%clk
0:03:00.5]} 14. Rxd4 {[%clk 0:03:11.3]} 14... Qc7 {[%clk 0:03:02.1]} 15. Rc1
{[%clk 0:03:02.1]} 15... Rfc8 {[%clk 0:03:00.7]} 16. a4 {[%clk 0:02:56.8]} 16...
Qa5 {[%clk 0:03:00]} 17. Rd3 {[%clk 0:02:54.7]} 17... Nd7 {[%clk 0:02:58.6]} 18.
Rg3 {[%clk 0:02:45.1]} 18... Bf6 {[%clk 0:02:52]} 19. Ba3 {[%clk 0:02:02]} 19...
Be5 {[%clk 0:02:29.6]} 20. Rh3 {[%clk 0:01:47.6]} 20... b5 {[%clk 0:02:08.5]}
21. b4 {[%clk 0:01:37.8]} 21... Qc7 {[%clk 0:01:49]} 22. cxb5 {[%clk 0:01:20.1]}
22... Bxc3 {[%clk 0:01:38.7]} 23. Rhxc3 {[%clk 0:01:18.2]} 23... Qxc3 {[%clk
0:01:38.5]} 24. Rxc3 {[%clk 0:01:16.3]} 24... Rxc3 {[%clk 0:01:39.6]} 25. Bb2
{[%clk 0:01:16.6]} 25... Rc7 {[%clk 0:01:28.3]} 26. h4 {[%clk 0:00:53.8]} 26...
axb5 {[%clk 0:01:27.9]} 27. a5 {[%clk 0:00:52.6]} 27... Ne5 {[%clk 0:01:26.2]}
28. Bxe5 {[%clk 0:00:43.1]} 28... dxe5 {[%clk 0:01:25.7]} 29. Qb2 {[%clk
0:00:43.1]} 29... f6 {[%clk 0:01:22.1]} 30. Qb3 {[%clk 0:00:40.5]} 30... Rc4
{[%clk 0:01:22.9]} 31. f3 {[%clk 0:00:41.3]} 31... h6 {[%clk 0:01:06.9]} 32. h5
{[%clk 0:00:41.6]} 32... Kh7 {[%clk 0:01:05.9]} 33. Kh2 {[%clk 0:00:42.6]} 33...
Rd8 {[%clk 0:01:06.7]} 34. a6 {[%clk 0:00:32.4]} 34... Ra8 {[%clk 0:01:06.2]}
35. Qa3 {[%clk 0:00:27.4]} 35... Rc6 {[%clk 0:01:06]} 36. Qa5 {[%clk 0:00:25.9]}
36... Raxa6 {[%clk 0:01:07.2]} 37. Qxb5 {[%clk 0:00:26.6]} 37... Rab6 {[%clk
0:01:09.1]} 38. Qa5 {[%clk 0:00:26.1]} 38... Rb7 {[%clk 0:01:09.6]} 39. Qa8
{[%clk 0:00:22.8]} 39... Rcb6 {[%clk 0:01:06.8]} 40. Qe8 {[%clk 0:00:23]} 40...
Rc7 {[%clk 0:01:04.1]} 41. Qg6+ {[%clk 0:00:21.3]} 41... Kh8 {[%clk 0:01:04.6]}
42. Qe8+ {[%clk 0:00:21.2]} 42... Kh7 {[%clk 0:01:05.9]} 43. Qg6+ {[%clk
0:00:21.3]} 43... Kg8 {[%clk 0:01:07.1]} 44. Qe8+ {[%clk 0:00:21.8]} 44... Kh7
{[%clk 0:01:08.5]} 1/2-1/2

[Event "*** Titled Tuesday Blitz AM"]
[Site "Chess.com"]
[Date "2020.01.07"]
[Round "9"]
[White "mikhaillushenkov"]
[Black "FMAntonio"]
[Result "1-0"]
[WhiteElo "2656"]
[BlackElo "2505"]
[TimeControl "180+2"]
[EndTime "11:05:15 PST"]
[Termination "mikhaillushenkov won by checkmate"]

1. Nf3 {[%clk 0:03:01.9]} 1... d5 {[%clk 0:03:00.6]} 2. e3 {[%clk 0:03:02.8]}
2... Nf6 {[%clk 0:03:00.7]} 3. c4 {[%clk 0:03:03.3]} 3... e6 {[%clk 0:03:00.8]}
4. b3 {[%clk 0:03:03.9]} 4... Be7 {[%clk 0:03:00]} 5. Bb2 {[%clk 0:03:04.9]}
5... c5 {[%clk 0:02:58]} 6. cxd5 {[%clk 0:03:04]} 6... exd5 {[%clk 0:02:58.2]}
7. Be2 {[%clk 0:03:01.1]} 7... O-O {[%clk 0:02:55.5]} 8. O-O {[%clk 0:03:01.7]}
8... Nc6 {[%clk 0:02:55.3]} 9. d3 {[%clk 0:02:56.6]} 9... Be6 {[%clk 0:02:51.5]}
10. Nbd2 {[%clk 0:02:35.6]} 10... d4 {[%clk 0:02:52.7]} 11. e4 {[%clk 0:02:35]}
11... Nd7 {[%clk 0:02:48.9]} 12. Rc1 {[%clk 0:02:33.7]} 12... Rc8 {[%clk
0:02:45.9]} 13. Ne1 {[%clk 0:02:28.7]} 13... f5 {[%clk 0:02:44.8]} 14. f4 {[%clk
0:02:28.1]} 14... Nf6 {[%clk 0:02:36.7]} 15. h3 {[%clk 0:02:12.8]} 15... g6
{[%clk 0:02:27.4]} 16. g4 {[%clk 0:02:12]} 16... Qd7 {[%clk 0:02:13.4]} 17. g5
{[%clk 0:02:08.8]} 17... Ne8 {[%clk 0:02:13.4]} 18. h4 {[%clk 0:02:04.3]} 18...
Nd6 {[%clk 0:01:58.7]} 19. Ng2 {[%clk 0:01:58.5]} 19... b6 {[%clk 0:01:44.4]}
20. h5 {[%clk 0:01:57.8]} 20... a5 {[%clk 0:01:23]} 21. e5 {[%clk 0:01:53.9]}
21... Ne8 {[%clk 0:01:21]} 22. Kf2 {[%clk 0:01:54.5]} 22... Bd5 {[%clk
0:01:11.1]} 23. Rh1 {[%clk 0:01:50.4]} 23... Ng7 {[%clk 0:01:03.4]} 24. hxg6
{[%clk 0:01:49.2]} 24... hxg6 {[%clk 0:01:03.6]} 25. Rh6 {[%clk 0:01:50.3]}
25... Nxe5 {[%clk 0:00:37]} 26. fxe5 {[%clk 0:01:44.1]} 26... Bxg5 {[%clk
0:00:37.4]} 27. Rxg6 {[%clk 0:01:45]} 27... Qe7 {[%clk 0:00:20.7]} 28. Nf3
{[%clk 0:01:39.2]} 28... Bxc1 {[%clk 0:00:17.8]} 29. Bxc1 {[%clk 0:01:41.1]}
29... Kf7 {[%clk 0:00:18.6]} 30. Nf4 {[%clk 0:01:33.8]} 30... Bxf3 {[%clk
0:00:15.6]} 31. Bxf3 {[%clk 0:01:35.7]} 31... Qxe5 {[%clk 0:00:13.6]} 32. Rxb6
{[%clk 0:01:21.1]} 32... Rh8 {[%clk 0:00:13]} 33. Bd5+ {[%clk 0:01:16.4]} 33...
Ke8 {[%clk 0:00:11.6]} 34. Bd2 {[%clk 0:00:45.9]} 34... Rh2+ {[%clk 0:00:07.8]}
35. Bg2 {[%clk 0:00:46.7]} 35... Kd7 {[%clk 0:00:05.5]} 36. Qf3 {[%clk
0:00:46.1]} 36... Rc7 {[%clk 0:00:04.8]} 37. Ng6 {[%clk 0:00:41.2]} 37... Qe8
{[%clk 0:00:03.5]} 38. Qd5+ {[%clk 0:00:38.7]} 38... Kc8 {[%clk 0:00:04.4]} 39.
Rb8+ {[%clk 0:00:39.4]} 39... Kxb8 {[%clk 0:00:05.1]} 40. Qa8# {[%clk
0:00:41.3]} 1-0

[Event "*** Titled Tuesday Blitz AM"]
[Site "Chess.com"]
[Date "2020.01.07"]
[Round "9"]
[White "VladDobrov"]
[Black "FelixJoseYnojosa"]
[Result "1-0"]
[WhiteElo "2852"]
[BlackElo "2648"]
[TimeControl "180+2"]
[EndTime "11:05:16 PST"]
[Termination "VladDobrov won by resignation"]

1. d4 {[%clk 0:03:01.9]} 1... Nf6 {[%clk 0:02:59.7]} 2. c4 {[%clk 0:03:03.1]}
2... e6 {[%clk 0:03:00.9]} 3. Nf3 {[%clk 0:03:04.3]} 3... d5 {[%clk 0:03:01.8]}
4. Nc3 {[%clk 0:03:05]} 4... c6 {[%clk 0:03:03.2]} 5. e3 {[%clk 0:03:05.6]} 5...
Bd6 {[%clk 0:03:02.1]} 6. Qc2 {[%clk 0:02:59.6]} 6... Nbd7 {[%clk 0:03:01.1]} 7.
Bd3 {[%clk 0:02:59.6]} 7... dxc4 {[%clk 0:03:01.7]} 8. Bxc4 {[%clk 0:03:01.5]}
8... b5 {[%clk 0:03:03]} 9. Bd3 {[%clk 0:03:02.8]} 9... Bb7 {[%clk 0:02:59.7]}
10. O-O {[%clk 0:02:41]} 10... a6 {[%clk 0:02:58.2]} 11. e4 {[%clk 0:02:07.7]}
11... e5 {[%clk 0:02:58.8]} 12. dxe5 {[%clk 0:02:03.3]} 12... Nxe5 {[%clk
0:02:59.1]} 13. Nxe5 {[%clk 0:02:04.6]} 13... Bxe5 {[%clk 0:02:58.2]} 14. Ne2
{[%clk 0:02:06.3]} 14... Rc8 {[%clk 0:02:35.7]} 15. Be3 {[%clk 0:01:54.5]} 15...
c5 {[%clk 0:02:35.5]} 16. Ng3 {[%clk 0:01:10.5]} 16... Ng4 {[%clk 0:02:23.3]}
17. Bxc5 {[%clk 0:01:07.1]} 17... Bd4 {[%clk 0:01:09.7]} 18. b4 {[%clk
0:01:07.2]} 18... Qh4 {[%clk 0:00:44.3]} 19. h3 {[%clk 0:01:08.1]} 19... Nxf2
{[%clk 0:00:45]} 20. Rxf2 {[%clk 0:00:34.8]} 20... Qxg3 {[%clk 0:00:39.7]} 21.
Rf1 {[%clk 0:00:35.1]} 21... Rc6 {[%clk 0:00:16.2]} 22. Qb3 {[%clk 0:00:30]}
22... Bxf2+ {[%clk 0:00:16.7]} 23. Rxf2 {[%clk 0:00:29]} 23... Qg6 {[%clk
0:00:16.1]} 24. a4 {[%clk 0:00:22.4]} 24... Qe6 {[%clk 0:00:15.6]} 25. Qa3
{[%clk 0:00:13]} 25... bxa4 {[%clk 0:00:10.7]} 26. b5 {[%clk 0:00:14.5]} 26...
Rc8 {[%clk 0:00:10.7]} 27. bxa6 {[%clk 0:00:14.4]} 27... Bc6 {[%clk 0:00:11.4]}
28. a7 {[%clk 0:00:15.3]} 28... f6 {[%clk 0:00:11]} 29. Qb4 {[%clk 0:00:14.5]}
29... Qd7 {[%clk 0:00:10.6]} 30. Bc4 {[%clk 0:00:14.3]} 30... Bxe4 {[%clk
0:00:09.6]} 31. Re2 {[%clk 0:00:15.3]} 31... f5 {[%clk 0:00:05.4]} 32. Bb5
{[%clk 0:00:16.4]} 32... Rc6 {[%clk 0:00:05.7]} 33. a8=Q+ {[%clk 0:00:16.5]}
33... Kf7 {[%clk 0:00:03.1]} 34. Bxc6 {[%clk 0:00:14.7]} 34... Bxc6 {[%clk
0:00:04.2]} 1-0

[Event "*** Titled Tuesday Blitz AM"]
[Site "Chess.com"]
[Date "2020.01.07"]
[Round "9"]
[White "Jabberwockiez"]
[Black "Angry_Serb"]
[Result "0-1"]
[WhiteElo "2310"]
[BlackElo "2660"]
[TimeControl "180+2"]
[EndTime "11:05:16 PST"]
[Termination "Angry_Serb won by resignation"]

1. e4 {[%clk 0:03:01.9]} 1... g6 {[%clk 0:02:54]} 2. d4 {[%clk 0:03:01.6]} 2...
Bg7 {[%clk 0:02:54.2]} 3. Nf3 {[%clk 0:03:02.4]} 3... d6 {[%clk 0:02:55.1]} 4.
Bd3 {[%clk 0:03:03.4]} 4... Nc6 {[%clk 0:02:55.7]} 5. d5 {[%clk 0:02:54.9]} 5...
Nb8 {[%clk 0:02:52.4]} 6. c4 {[%clk 0:02:53.1]} 6... c6 {[%clk 0:02:50.8]} 7.
Nc3 {[%clk 0:02:53.6]} 7... Nf6 {[%clk 0:02:50.1]} 8. O-O {[%clk 0:02:53.5]}
8... O-O {[%clk 0:02:50.6]} 9. Nd4 {[%clk 0:02:41.8]} 9... Nxd5 {[%clk
0:02:43.9]} 10. exd5 {[%clk 0:02:24.7]} 10... Bxd4 {[%clk 0:02:44.5]} 11. Bxg6
{[%clk 0:02:25.6]} 11... Bxf2+ {[%clk 0:02:12.9]} 12. Rxf2 {[%clk 0:02:23]}
12... fxg6 {[%clk 0:02:14.8]} 13. Bh6 {[%clk 0:02:06.5]} 13... Rxf2 {[%clk
0:02:14]} 14. Kxf2 {[%clk 0:02:04.7]} 14... e5 {[%clk 0:02:15.1]} 15. dxe6
{[%clk 0:02:01.7]} 15... Qh4+ {[%clk 0:02:14.4]} 16. Ke2 {[%clk 0:01:09.6]}
16... Qxh6 {[%clk 0:01:25.6]} 17. Qxd6 {[%clk 0:01:09]} 17... Qh5+ {[%clk
0:01:21.4]} 18. Kd2 {[%clk 0:01:06.3]} 18... Qg5+ {[%clk 0:01:22.1]} 19. Kd3
{[%clk 0:00:45]} 19... Qf5+ {[%clk 0:01:22.3]} 20. Ne4 {[%clk 0:00:46.1]} 20...
Bxe6 {[%clk 0:01:16.3]} 21. Qd8+ {[%clk 0:00:29.5]} 21... Kg7 {[%clk 0:01:16.9]}
22. Qd4+ {[%clk 0:00:22.9]} 22... Kh6 {[%clk 0:01:16]} 23. g4 {[%clk 0:00:20.4]}
23... Qf3+ {[%clk 0:01:03.9]} 24. Kc2 {[%clk 0:00:20.7]} 24... Qe2+ {[%clk
0:00:47.4]} 25. Kb3 {[%clk 0:00:21.2]} 25... Bxg4 {[%clk 0:00:42.8]} 26. Nf6
{[%clk 0:00:14.1]} 26... Qf3+ {[%clk 0:00:42.5]} 27. Kc2 {[%clk 0:00:13.2]}
27... Bf5+ {[%clk 0:00:43.4]} 28. Kd2 {[%clk 0:00:13.4]} 28... Qg2+ {[%clk
0:00:26.6]} 29. Kc3 {[%clk 0:00:13.6]} 29... Qc2+ {[%clk 0:00:23.6]} 30. Kb4
{[%clk 0:00:14.5]} 30... Na6+ {[%clk 0:00:23.7]} 31. Ka3 {[%clk 0:00:15.4]}
31... Qd3+ {[%clk 0:00:24.8]} 32. Qxd3 {[%clk 0:00:15.4]} 32... Bxd3 {[%clk
0:00:26.7]} 33. Ng4+ {[%clk 0:00:15.3]} 33... Kg7 {[%clk 0:00:27.3]} 34. Ne5
{[%clk 0:00:16.2]} 34... Bf5 {[%clk 0:00:27.7]} 35. Rd1 {[%clk 0:00:14.5]} 35...
Re8 {[%clk 0:00:28.4]} 36. Nd7 {[%clk 0:00:11.1]} 36... Rd8 {[%clk 0:00:23.4]}
0-1